Cogmind - Beta 9.5 --- EXPLORER MODE // 2020.04.12 @ 20:03:15 Player: K.Ioz Result: Self-destructed Performance ------------- Evolutions (0) 0 Regions Visited (4) 800 Robots Destroyed (15) 75 Value Destroyed (307) 307 Prototype IDs (2) 40 Alien Tech Used (0) 0 Bonus (24) 24 TOTAL SCORE: 1246 Bonus ------- Follower Combat Kills 60 Friendly Fire -36 Cogmind --------- Core Integrity 207/250 Matter 284/300 Energy 125/125 System Corruption 1% Temperature Cool (0) Movement Treading (180) Ox1 Location -9/Mines Parts ------- > --- POWER (1) -------- Light Ion Engine > --- PROPULSION (2) --- Light Treads Light Treads > --- UTILITY (3) ------ Heat Sink High-capacity Storage Unit Light Armor Plating > --- WEAPON (2) ------- Beam Cannon Assault Rifle > --- INVENTORY (12) --- Light Ion Engine Light Ion Engine Improved Heat Sink High-capacity Battery (400) Signal Interpreter Terrain Scanner Small Laser Beam Cannon Light Assault Rifle Datajack Peak State ------------ > --- POWER ------------ Light Ion Engine > --- PROPULSION ------- Light Treads Light Treads > --- UTILITY ---------- Heat Sink Large Storage Unit Light Armor Plating > --- WEAPON ----------- Beam Cannon Assault Rifle > --- INVENTORY -------- Light Ion Engine High-capacity Battery Signal Interpreter Signal Interpreter Terrain Scanner Small Laser Small Laser Beam Cannon Light Assault Rifle Datajack [Rating: 9] Favorites ----------- Power Light Ion Engine Engine Light Ion Engine Propulsion Light Treads Treads Light Treads Utility Light Armor Plating Device Heat Sink Storage Large Storage Unit Protection Light Armor Plating Weapon Beam Cannon Energy Gun Small Laser Energy Cannon Beam Cannon Ballistic Gun Assault Rifle Build | -11 -10 -10 -10 -9 ------- Run | Scr Mat Min Exi Min Slots Evolved 1 | . 1 . . . Power . | . . . . . Propulsion . | . . . . . Utility 1 | . 1 . . . Weapon . | . . . . . Parts Attached 14 | 7 6 . 1 . Power 2 | 1 1 . . . Engine 2 | 1 1 . . . Core . | . . . . . Reactor . | . . . . . Propulsion 2 | 2 . . . . Treads 2 | 2 . . . . Leg . | . . . . . Wheel . | . . . . . Hover . | . . . . . Flight . | . . . . . Utility 5 | 2 2 . 1 . Device 1 | . 1 . . . Storage 3 | 1 1 . 1 . Processor . | . . . . . Hackware . | . . . . . Protection 1 | 1 . . . . Artifact . | . . . . . Weapon 5 | 2 3 . . . Energy Gun 1 | 1 . . . . Energy Cannon 2 | . 2 . . . Ballistic Gun 2 | 1 1 . . . Ballistic Cannon . | . . . . . Launcher . | . . . . . Special Weapon . | . . . . . Impact Weapon . | . . . . . Slashing Weapon . | . . . . . Piercing Weapon . | . . . . . Special Melee Weapon . | . . . . . Unidentified Prototypes . | . . . . . Parts Lost . | . . . . . Power . | . . . . . Propulsion . | . . . . . Utility . | . . . . . Weapon . | . . . . . Highest Loss Streak . | . . . . . Average Slot Usage (%) 98 | . 97 100 100 100 Engine 12 | . 12 12 12 12 Treads 25 | . 25 25 25 25 Device 11 | . 10 12 12 12 Storage 12 | . 12 12 12 12 Protection 12 | . 12 12 12 12 Energy Cannon 11 | . 10 12 12 12 Ballistic Gun 12 | . 12 12 12 12 Naked Turns . | . . . . . Heaviest Build 44 | 16 28 28 44 44 Greatest Support 40 | 40 40 40 40 40 Greatest Overweight (x) 1 | . . . 1 1 Average Overweight (x) . | . . . . 1 Largest Inventory Capacity 12 | 8 10 10 12 12 Average Capacity 9 | 7 9 10 10 12 Most Carried 10 | 2 10 10 10 10 Average Carried 8 | 1 7 9 10 10 Final Capacity 12 | 8 10 10 12 12 Final Carried 10 | 2 10 10 10 10 Class Distribution -------------------- 100% | Hacker-Mutant Dominant Class ---------------- Hacker-Mutant | -10/Materials Hacker-Mutant | -10/Mines Hacker-Mutant | -10/Exiles Hacker-Mutant | -9/Mines Resources | -11 -10 -10 -10 -9 ----------- Run | Scr Mat Min Exi Min Matter Collected 401 | 253 111 37 . . Remotely . | . . . . . Salvage Created 385 | . 311 74 . . Parts 32 | . 25 7 . . Haulers Intercepted . | . . . . . Recyclers Shooed . | . . . . . Parts Field Recycled . | . . . . . Retrieved Matter . | . . . . . Parts Self-Destructed . | . . . . . Prevented . | . . . . . Kills | -11 -10 -10 -10 -9 ------- Run | Scr Mat Min Exi Min Combat Hostiles Destroyed 12 | . 8 4 . . Guns 5 | . 3 2 . . Cannons 7 | . 5 2 . . Classes Destroyed 3 | . 3 . . . Watcher 3 | . 3 . . . Swarmer 8 | . 4 4 . . Grunt 4 | . 4 . . . Best Kill Streak 2 | . 2 2 . . Combat Bots Only 2 | . 2 2 . . Max Kills in Single Turn 1 | . 1 1 . . Gunslinging . | . . . . . Exploded . | . . . . . Melee . | . . . . . Uniques/NPCs Destroyed . | . . . . . Combat | -11 -10 -10 -10 -9 -------- Run | Scr Mat Min Exi Min Damage Taken 335 | . 219 116 . . Core 43 | . 11 32 . . Absorbed by Shields . | . . . . . Core Remaining (%) 100 | 100 . . . . Volleys Fired 35 | . 24 9 2 . Largest 2 | . 2 2 2 . Hottest 80 | . 80 80 80 . Shots Fired 70 | . 48 18 4 . Gun 39 | . 28 9 2 . Cannon 31 | . 20 9 2 . Launcher . | . . . . . Special . | . . . . . Kinetic 35 | . 24 9 2 . Thermal 35 | . 24 9 2 . Explosive . | . . . . . Electromagnetic . | . . . . . Robot Hit Streak 14 | . 14 7 . . Robot Miss Streak 5 | . 1 5 . . Penetration Max . | . . . . . Secondary Targets . | . . . . . Shots Hit Robots 47 | . 37 10 . . Core Hits 22 | . 16 6 . . Critical Hits 1 | . 1 . . . Critical Kills 1 | . 1 . . . Critical Parts Destroyed . | . . . . . Melee Attacks . | . . . . . Impact . | . . . . . Slashing . | . . . . . Piercing . | . . . . . Sneak Attacks . | . . . . . Combat Hostiles . | . . . . . Follow-up Attacks . | . . . . . Damage Inflicted 673 | . 495 178 . . Guns 256 | . 201 55 . . Cannons 417 | . 294 123 . . Explosions . | . . . . . Melee . | . . . . . Ramming . | . . . . . Kinetic 213 | . 158 55 . . Thermal 460 | . 337 123 . . Explosive . | . . . . . Electromagnetic . | . . . . . Impact . | . . . . . Slashing . | . . . . . Piercing . | . . . . . Highest Corruption 1 | . 1 1 1 1 Average Corruption 1 | . 1 1 1 1 Corruption Purged . | . . . . . Effects 5 | . 1 4 . . Message Errors 4 | . 1 3 . . Data Loss (minor) 1 | . . 1 . . Overload Shots . | . . . . . Overflow Damage 12 | . 12 . . . Projectiles 12 | . 12 . . . Explosions . | . . . . . Melee . | . . . . . Knockbacks . | . . . . . Impact . | . . . . . Kinetic . | . . . . . Secondary . | . . . . . Self-Inflicted Damage . | . . . . . Shots . | . . . . . Rammed . | . . . . . Targets Rammed . | . . . . . Kicked . | . . . . . Crushed . | . . . . . Highest Temperature 89 | . 89 38 . . Average Temperature 35 | . 36 23 . . Received Heat Transfer 177 | . 126 51 . . Siege Activations . | . . . . . Robots Corrupted . | . . . . . Combat Hostiles . | . . . . . Parts Fried . | . . . . . Impact Corruptions . | . . . . . Robots Melted . | . . . . . Combat Hostiles . | . . . . . Parts Melted 1 | . 1 . . . Heat Transferred 988 | . 729 259 . . Parts Sabotaged . | . . . . . Parts Stolen . | . . . . . Parts Stripped . | . . . . . Power Chain Reactions . | . . . . . Missiles Intercepted . | . . . . . Alert | -11 -10 -10 -10 -9 ------- Run | Scr Mat Min Exi Min Peak Influence 118 | . 65 118 . 6 Average Influence 20 | . 18 32 . . Maximum Alert Level . | . . . . . Low Security (%) 100 | 100 100 100 . 100 Level 1 . | . . . . . Level 2 . | . . . . . Level 3 . | . . . . . Level 4 . | . . . . . Level 5 . | . . . . . High Security . | . . . . . Max Security . | . . . . . Squads Dispatched . | . . . . . Investigation . | . . . . . Extermination . | . . . . . Reinforcement . | . . . . . Assault . | . . . . . Garrison . | . . . . . Intercept . | . . . . . Construction Impeded . | . . . . . Haulers Reinforced . | . . . . . Stealth | -11 -10 -10 -10 -9 --------- Run | Scr Mat Min Exi Min Distress Signals 1 | . 1 . . . Communications Jammed . | . . . . . Distress Signals . | . . . . . Times Spotted 30 | . 24 6 . . Peak Tracking Total 4 | . 4 2 . . Tactical Retreats 7 | . 7 . . . Traps | -11 -10 -10 -10 -9 ------- Run | Scr Mat Min Exi Min Traps Triggered 4 | . 4 . . . Indirectly . | . . . . . Trap Hack Attempts . | . . . . . Triggered . | . . . . . Disarmed . | . . . . . Reprogrammed . | . . . . . Reused . | . . . . . Traps Extracted . | . . . . . Installed . | . . . . . Triggered . | . . . . . Machines | -11 -10 -10 -10 -9 ---------- Run | Scr Mat Min Exi Min Machines Disabled 3 | . . 3 . . Max in Single Turn 1 | . . 1 . . Machines Sabotaged . | . . . . . Garrisons Compromised . | . . . . . Overloaded Fab Kills . | . . . . . Fab Network Shutdowns . | . . . . . Hacking | -11 -10 -10 -10 -9 --------- Run | Scr Mat Min Exi Min Machines Accessed 15 | . 10 . 4 1 Terminals 9 | . 8 . . 1 Fabricators . | . . . . . Repair Stations 1 | . 1 . . . Recycling Units 1 | . 1 . . . Scanalyzers . | . . . . . Garrison Access . | . . . . . Total Hacks 29 | . 22 . 4 3 Successful 22 | . 17 . 4 1 Failed 7 | . 5 . . 2 Catastrophic . | . . . . . Database Lockouts . | . . . . . Manual 13 | . 10 . . 3 Terminals 20 | . 17 . . 3 Fabricators . | . . . . . Repair Stations 2 | . 2 . . . Recycling Units 3 | . 3 . . . Scanalyzers . | . . . . . Garrison Access . | . . . . . Terminal Hacks 11 | . 6 . 4 1 Record 4 | . . . 4 . Robot Analysis 2 | . 2 . . . Prototype ID Bank 1 | . 1 . . . Branch Access Points 1 | . . . . 1 Unreport Threat 2 | . 2 . . . Hauler Manifests 1 | . 1 . . . Fabricator Hacks . | . . . . . Repair Station Hacks 2 | . 2 . . . Scan Component 1 | . 1 . . . Repair 1 | . 1 . . . Recycling Unit Hacks 2 | . 2 . . . Report Inventory 1 | . 1 . . . Retrieve Components 1 | . 1 . . . Scanalyzer . | . . . . . Garrison Access Hacks . | . . . . . Unauthorized Hacks 17 | . 17 . . . Terminals 7 | . 7 . . . Botnet 7 | . 7 . . . Fabricators . | . . . . . Repair Stations . | . . . . . Recycling Units . | . . . . . Scanalyzers . | . . . . . Garrison Access . | . . . . . Data Cores Recovered . | . . . . . Used . | . . . . . Hacking Detections 6 | . 5 . . 1 Full Trace Events . | . . . . . Feedback Events . | . . . . . Feedback Blocked . | . . . . . Robot Schematics Acquired . | . . . . . Robots Built . | . . . . . Matter . | . . . . . Time . | . . . . . Total Robot Build Rating . | . . . . . Part Schematics Acquired . | . . . . . Parts Built . | . . . . . Matter . | . . . . . Time . | . . . . . Total Part Build Rating . | . . . . . Parts Repaired 1 | . 1 . . . Time 26 | . 26 . . . Parts Recycled . | . . . . . Recycled Matter . | . . . . . Retrieved Matter . | . . . . . Retrieved Components 9 | . 9 . . . Parts Scanalyzed . | . . . . . Part Schematics Acquired . | . . . . . Parts Damaged . | . . . . . Bothacking | -11 -10 -10 -10 -9 ------------ Run | Scr Mat Min Exi Min Used RIF Installer . | . . . . . Robots Hacked . | . . . . . Non-combat . | . . . . . Combat . | . . . . . Robot Hacks Applied . | . . . . . Relay Couplers Released . | . . . . . Robots Rewired . | . . . . . Allies Hacked . | . . . . . Hacks Repelled . | . . . . . Allies | -11 -10 -10 -10 -9 -------- Run | Scr Mat Min Exi Min Total Allies 2 | . . 2 . . Largest Group 2 | . . 2 2 . Highest-Rated Group 38 | . . 38 38 . Highest-Rated Ally 31 | . . 31 31 . Total Orders . | . . . . . Ally Attacks 1 | . . 1 . . Total Damage 137 | . . 137 . . Kills 2 | . . 2 . . Allies Corrupted . | . . . . . Allies Melted . | . . . . . Intel | -11 -10 -10 -10 -9 ------- Run | Scr Mat Min Exi Min Robot Analysis Total 2 | . 2 . . . Derelict Logs Recovered 2 | . . 2 . . Drone Launches . | . . . . . Drone Recoveries . | . . . . . Exploration | -11 -10 -10 -10 -9 ------------- Run | Scr Mat Min Exi Min Turns Passed 3937 | 154 1924 905 869 85 Spaces Moved 2194 | 101 992 524 530 47 Core 17 | 17 . . . . Treads 2177 | 84 992 524 530 47 Legs . | . . . . . Wheels . | . . . . . Hover . | . . . . . Flight . | . . . . . Fastest Speed 50 | 50 160 160 160 180 Average Speed 160 | 141 160 160 162 180 Slowest Speed 180 | 160 160 160 180 180 Overloaded Moves . | . . . . . Propulsion Burnouts . | . . . . . Robots Hopped . | . . . . . Cave-ins Triggered . | . . . . . Exploration Rate (%) 62 | 5 96 96 92 25 Regions Visited 4 Branch Regions 3 Pre-discovered Areas 2 | . . 2 . . Known Exits Taken 4 | 1 1 1 1 . Unknown Exits Taken . | . . . . . Scrap Searched . | . . . . . Spaces Dug . | . . . . . Terrain Destroyed . | . . . . . Melee . | . . . . . Projectile . | . . . . . AOE . | . . . . . Actions | -11 -10 -10 -10 -9 --------- Run | Scr Mat Min Exi Min Total 2546 | 109 1284 573 533 47 Wait 288 | . 250 38 . . Move 2190 | 100 991 523 529 47 Hop . | . . . . . Pick Up 12 | 2 9 1 . . Fast Attach 10 | 7 3 . . . Attach . | . . . . . Detach . | . . . . . Swap 4 | . 3 . 1 . Drop 6 | . 4 1 1 . Fire 35 | . 24 9 2 . Melee . | . . . . . Ram . | . . . . . Kick . | . . . . . Crush . | . . . . . Escape Stasis . | . . . . . Rewire 1 | . . 1 . . Trap . | . . . . . Miscellaneous . | . . . . . Route ------- -11/Scrapyard -10/Materials (discovered 4 exits: *Mat x3 / *Min) -10/Mines (discovered 3 exits: *Mat x2 / *Exi) -10/Exiles (discovered 2 exits: *Min x2) -9/Mines (discovered 1 exit: *Mat) History --------- Turn | Location | Event 19 | -11/Scrapyard | Identified exit to Materials 19 | -11/Scrapyard | Discovered exit to Materials (range 15) 155 | -11/Scrapyard | Entered Materials 155 | -10/Materials | Evolved 1 slot: Utility x1 242 | -10/Materials | Identified exit to Mines 242 | -10/Materials | Discovered exit to Mines (range 14) 308 | -10/Materials | Build established: Hacker-Mutant 886 | -10/Materials | Identified exit to Materials 886 | -10/Materials | Discovered exit to Materials (range 5) 1081 | -10/Materials | Discovered exit to Materials (range 14) 1136 | -10/Materials | Repaired Beam Cannon 1582 | -10/Materials | Discovered exit to Materials (range 15) 2079 | -10/Materials | Entered Mines 2080 | -10/Mines | Learned location of Storage (-8) 2087 | -10/Mines | Discovered exit to Materials (range 6) 2475 | -10/Mines | Discovered exit to Materials (range 9) 2732 | -10/Mines | A weapon hastily lodged in a ceiling crevice suddenly fell to the ground 2750 | -10/Mines | Learned location of 1 exit from Materials 2965 | -10/Mines | Deemed a non-threat by the Exiles lab entrance 2967 | -10/Mines | Identified exit to Exiles 2967 | -10/Mines | Discovered exit to Exiles (range 5) 2984 | -10/Mines | Entered Exiles 2984 | -10/Exiles | Found Exiles lab abandoned 2984 | -10/Exiles | Accompanied by 2 allies 3005 | -10/Exiles | Identified exit to Mines 3005 | -10/Exiles | Discovered exit to Mines (range 15) 3014 | -10/Exiles | Led the pair of lost Derelicts to a safe place 3838 | -10/Exiles | Discovered exit to Mines (range 10) 3853 | -10/Exiles | Entered Mines 3876 | -9/Mines | Met a Derelict bent on vengeance 3897 | -9/Mines | Identified exit to Materials 3897 | -9/Mines | Discovered exit to Materials (range 15) 3938 | -9/Mines | Self-destructed Last Messages --------------- >>Record! "BIN-BYE" To the spacelab! 03304_ Connecting with EX-Message Board... >>Record! "MSG999999-FU" MAIN.C you're pretty crappy as far as evil overlords go. Imprinter is probably going to wreck your life and you're too stupid to see it coming. 03304_ Connecting with EX-Message Board... 03722_ Dropped Lrg. Storage Unit. 03838_ EXIT=FOUND: MINES LOCATION=MINES GOAL=ESCAPE 03890_ K-01 Serf collects debris. 03897_ EXIT=FOUND: MATERIALS 03899_ K-01 Serf collects debris. 03904_ K-01 Serf cleans the Core Extractor. 03904_ K-01 Serf collects debris. 03933_ Connecting with Terminal... >>Access(Branch) No branch access points found. Map ----- +----------------------------------------------------+ | | | | | | | | | | | | | | | | | | | | | | | | | | | ?????????????????????????????????????? | | ?????????????????????????????????????? | | ?????????????????????????????????????? | | ?????????????????????????????????????? | | ?????????????????????????????????????? | | ?????????????????????????????????????? | | ?????????????????????????????????????? | | ?????????????????????????????????????? | | ?????????????????????????????????????? | | ?????????????????????????????????????? | | ???????????????###???????????????????? | | ???????#########T#???????????????????? | | ???????# @ #???????????????????? | | ???????# #???????????????????? | | ???????# < """ #???????????????????? | | ???????# """ #???????????????????? | | ???????# """ #???????????????????? | | ???????# #???????????????????? | | ???????#### ########????????????????? | | ??????????# #?????????????? | | ??????????# ########????????????????? | | ??????????# #???????????????????????? | | ??????????# ###?????????????????????? | | ??????????# ##????????????????????? | | ??????????# #????????????????????? | | ??????????# #????????????????????? | | ?????????## ##??????##????????????? | | ?????????# ##???? ##???????????? | | ?????????# ##?? ##??????????? | | ?????????## ## #??????????? | | ?????????## #??????????? | | ????????## #???????????? | | ???????## ##???????????? | | ???????# ##????????????? | | ???????# ### ##?????????????? | | ??????## ##??# ##??????????????? | | ?????## #???? #???????????????? | +----------------------------------------------------+ Best States ------------- Heat Dissipation 35 Energy Generation 10 Energy Capacity 125 Matter Stores 300 Matter Capacity 300 Sight Range 16 Terrain Scan Density 10 Armor Coverage 150 Resistance: KI 35 Resistance: TH 35 Resistance: EX 35 Resistance: EM 35 Resistance: I 35 Resistance: S 35 Resistance: P 35 Evasion (%) 50 Recoil Reduction 2 Offensive Hacking 20 Item Schematics ----------------- None Robot Schematics ------------------ None Fabricated ------------ Nothing Alien Tech Used ----------------- None Achievements -------------- None Challenges ------------ None Game ------ Seed DimensionalWaveNukerbomber Manual? 0 Play Time 00:17:06 Cumulative 158.7 hours Start 2020.04.12 @ 19:46:05 End 2020.04.12 @ 20:03:15 Sessions 1 Manual Loads 0 Difficulty Explorer Special Mode None Game No. 100 Rogue 74 Adventurer 0 Explorer 26 Win Type - Total 4 Types 4/0/0/0/0/0/0 Lore% 60 Gallery% 64 Achievement% 56 Wizard Run 0 Options --------- ASCII 0 Keyboard 1 Movement Vi Keybinds 0 Fullscreen 1 Font 18/Terminus Map View 76x50 Tactical HUD 1 Map Filters NONE Filters LOW_CONTRAST(47,30,31) Steam 1 RUN: 7f6ee845-82cf-4e07-bd70-950a37384e06